fUST/lending_fUST_20240705
["ID","MTS","AMOUNT","RATE_DAILY","PERIOD"]
[331163249,1720113039616,-500.0,0.00013698,2]
[331163250,1720113039626,-500.0,0.00013698,2]
[331163251,1720113039636,-500.0,0.00013698,2]
[331163252,1720113039646,-500.0,0.00013698,2]
[331163253,1720113039656,-1001.25,0.00013698,2]
[331163254,1720113039666,-500.0,0.00013698,2]
[331163255,1720113039676,-1381.04,0.00013698,2]
[331163256,1720113039686,-701.65,0.00013698,2]
[331163257,1720113039695,-500.0,0.00013698,2]
[331163258,1720113039705,-500.0,0.00013698,2]
[331163259,1720113039715,-500.0,0.00013698,2]
[331163260,1720113039727,-500.0,0.00013698,2]
[331163261,1720113039736,-500.0,0.00013698,2]
[331163262,1720113039746,-500.0,0.00013698,2]
[331163263,1720113039756,-500.0,0.00013698,2]
[331163264,1720113039766,-500.0,0.00013698,2]
[331163265,1720113039776,-500.0,0.00013698,2]
[331163266,1720113039785,-500.0,0.00013698,2]
[331163267,1720113039795,-500.0,0.00013698,2]
[331163268,1720113039804,-500.0,0.00013698,2]
[331163269,1720113039814,-711.19,0.00013698,2]
[331163271,1720113039824,-787.93,0.00013698,2]
[331163272,1720113039834,-552.10888188,0.00013698,2]
[331163273,1720113039843,-500.0,0.00013698,2]
[331163274,1720113039975,-574.50141139,0.00013698,2]
[331163275,1720113039984,-500.0,0.00013698,2]
[331163276,1720113039994,-500.0,0.00013698,2]
[331163277,1720113040004,-500.0,0.00013698,2]
[331163278,1720113040013,-500.0,0.00013698,2]
[331163279,1720113040023,-500.0,0.00013698,2]
[331163280,1720113040032,-203.35329202,0.00013698,2]
[331163281,1720113040041,-500.0,0.00013698,2]
[331163282,1720113040051,-500.0,0.00013698,2]
[331163283,1720113040060,-742.77,0.00013698,2]
[331163284,1720113040069,-500.0,0.00013698,2]
[331163285,1720113040078,-709.02,0.00013698,2]
[331163286,1720113040087,-500.0,0.00013698,2]
[331163287,1720113040096,-505.39705489,0.00013698,2]
[331163288,1720113040105,-500.0,0.00013698,2]
[331163289,1720113040114,-500.0,0.00013698,2]
[331163290,1720113040123,-500.0,0.00013698,2]
[331163291,1720113040133,-500.0,0.00013698,2]
[331163292,1720113040145,-500.0,0.00013698,2]
[331163293,1720113040156,-500.0,0.00013698,2]
[331163294,1720113040165,-500.0,0.00013698,2]
[331163295,1720113040175,-500.0,0.00013698,2]
[331163296,1720113040184,-500.0,0.00013698,2]
[331163297,1720113040193,-564.93040162,0.00013698,2]
[331163298,1720113040202,-8847.74,0.00013698,2]
[331163300,1720113040212,-500.0,0.00013698,2]
[331163302,1720113040223,-500.0,0.00013698,2]
[331163304,1720113040232,-500.0,0.00013698,2]
[331163306,1720113040241,-500.0,0.00013698,2]
[331163308,1720113040250,-608.48,0.00013698,2]
[331163309,1720113040259,-500.0,0.00013698,2]
[331163310,1720113040268,-500.0,0.00013698,2]
[331163311,1720113040277,-501.49888466,0.00013698,2]
[331163312,1720113040287,-500.0,0.00013698,2]
[331163313,1720113040296,-500.0,0.00013698,2]
[331163314,1720113040305,-500.0,0.00013698,2]
[331163315,1720113040314,-500.0,0.00013698,2]
[331163316,1720113040324,-500.0,0.00013698,2]
[331163317,1720113040333,-500.0,0.00013698,2]
[331163318,1720113040342,-509.86,0.00013698,2]
[331163319,1720113040351,-500.0,0.00013698,2]
[331163320,1720113040360,-500.0,0.00013698,2]
[331163321,1720113040370,-500.0,0.00013698,2]
[331163323,1720113040379,-712.13,0.00013698,2]
[331163325,1720113040388,-500.0,0.00013698,2]
[331163327,1720113040398,-500.0,0.00013698,2]
[331163328,1720113040407,-500.0,0.00013698,2]
[331163329,1720113040416,-500.0,0.00013698,2]
[331163330,1720113040425,-500.0,0.00013698,2]
[331163331,1720113040434,-500.0,0.00013698,2]
[331163332,1720113040443,-500.0,0.00013698,2]
[331163333,1720113040452,-500.0,0.00013698,2]
[331163334,1720113040462,-500.0,0.00013698,2]
[331163335,1720113040472,-500.0,0.00013698,2]
[331163336,1720113040483,-500.0,0.00013698,2]
[331163337,1720113040493,-500.0,0.00013698,2]
[331163338,1720113040503,-186.14319715,0.00013698,2]
[331163339,1720113040513,-795.08,0.00013698,2]
[331163340,1720113040522,-500.0,0.00013698,2]
[331163341,1720113040531,-500.0,0.00013698,2]
[331163343,1720113040541,-507.2552439,0.00013698,2]
[331163345,1720113040551,-500.0,0.00013698,2]
[331163347,1720113040560,-561.3,0.00013698,2]
[331163349,1720113040570,-500.0,0.00013698,2]
[331163351,1720113040580,-500.0,0.00013698,2]
[331163353,1720113040589,-630.43,0.00013698,2]
[331163355,1720113040599,-500.0,0.00013698,2]
[331163357,1720113040609,-500.0,0.00013698,2]
[331163359,1720113040618,-500.0,0.00013698,2]
[331163361,1720113040627,-762.64,0.00013698,2]
[331163363,1720113040636,-252.70517784,0.00013698,2]
[331163365,1720113040646,-500.0,0.00013698,2]
[331163367,1720113040655,-500.0,0.00013698,2]
[331163369,1720113040664,-500.0,0.00013698,2]
[331163371,1720113040674,-500.0,0.00013698,2]
[331163373,1720113040684,-500.0,0.00013698,2]
[331163375,1720113040693,-500.0,0.00013698,2]
[331163377,1720113040703,-500.0,0.00013698,2]
[331163379,1720113040712,-500.0,0.00013698,2]
[331163381,1720113040722,-500.0,0.00013698,2]
[331163383,1720113040731,-500.0,0.00013698,2]
[331163385,1720113040740,-500.0,0.00013698,2]
[331163387,1720113040750,-500.0,0.00013698,2]
[331163389,1720113040759,-500.0,0.00013698,2]
[331163390,1720113040768,-500.0,0.00013698,2]
[331163391,1720113040777,-500.0,0.00013698,2]
[331163393,1720113040786,-500.0,0.00013698,2]
[331163395,1720113040796,-500.0,0.00013698,2]
[331163397,1720113040805,-2158.6,0.00013698,2]
[331163399,1720113040814,-500.0,0.00013698,2]
[331163401,1720113040823,-500.0,0.00013698,2]
[331163403,1720113040832,-500.0,0.00013698,2]
[331163405,1720113040842,-618.06,0.00013698,2]
[331163407,1720113040851,-500.0,0.00013698,2]
[331163409,1720113040862,-500.0,0.00013698,2]
[331163411,1720113040870,-500.0,0.00013698,2]
[331163412,1720113040880,-2765.92,0.00013698,2]
[331163414,1720113040889,-500.0,0.00013698,2]
[331163416,1720113040898,-1080.8,0.00013698,2]
[331163418,1720113040907,-500.0,0.00013698,2]
[331163419,1720113040916,-500.0,0.00013698,2]
[331163420,1720113040926,-931.3,0.00013698,2]
[331163422,1720113040935,-500.0,0.00013698,2]
[331163423,1720113040944,-334.08763431,0.00013698,2]
[331163425,1720113040954,-500.0,0.00013698,2]
[331163426,1720113040963,-1482.17,0.00013698,2]
[331163427,1720113040972,-500.0,0.00013698,2]
[331163428,1720113040981,-500.0,0.00013698,2]
[331163429,1720113040992,-500.0,0.00013698,2]
[331163430,1720113041002,-500.0,0.00013698,2]
[331163431,1720113041011,-500.0,0.00013698,2]
[331163432,1720113041021,-500.0,0.00013698,2]
[331163433,1720113041030,-500.0,0.00013698,2]
[331163434,1720113041039,-737.64,0.00013698,2]
[331163435,1720113041048,-500.0,0.00013698,2]
[331163436,1720113041058,-500.0,0.00013698,2]
[331163437,1720113041067,-1119.44,0.00013698,2]
[331163438,1720113041076,-500.0,0.00013698,2]
[331163439,1720113041087,-500.0,0.00013698,2]
[331163440,1720113041097,-500.0,0.00013698,2]
[331163441,1720113041107,-500.0,0.00013698,2]
[331163442,1720113041115,-500.0,0.00013698,2]
[331163443,1720113041124,-4961.15,0.00013698,2]
[331163444,1720113041133,-607.21349628,0.00013698,2]
[331163445,1720113041147,-500.0,0.00013698,2]
[331163446,1720113041155,-502.20351532,0.00013698,2]
[331163447,1720113041164,-500.0,0.00013698,2]
[331163448,1720113041173,-500.0,0.00013698,2]
[331163449,1720113041183,-500.0,0.00013698,2]
[331163450,1720113041192,-500.0,0.00013698,2]
[331163451,1720113041201,-500.0,0.00013698,2]
[331163452,1720113041210,-500.0,0.00013698,2]
[331163453,1720113041223,-768.08,0.00013698,2]
[331163454,1720113041232,-500.0,0.00013698,2]
[331163455,1720113041241,-985.04,0.00013698,2]
[331163456,1720113041250,-501.11221528,0.00013698,2]
[331163457,1720113041259,-500.0,0.00013698,2]
[331163458,1720113041268,-500.0,0.00013698,2]
[331163459,1720113041277,-2842.6,0.00013698,2]
[331163460,1720113041286,-500.0,0.00013698,2]
[331163461,1720113041295,-500.0,0.00013698,2]
[331163462,1720113041304,-500.0,0.00013698,2]
[331163463,1720113041313,-505.0342328,0.00013698,2]
[331163464,1720113041322,-500.0,0.00013698,2]
[331163465,1720113041331,-553.36074821,0.00013698,2]
[331163466,1720113041340,-500.0,0.00013698,2]
[331163467,1720113041350,-500.0,0.00013698,2]
[331163468,1720113041359,-500.0,0.00013698,2]
[331163469,1720113041368,-500.0,0.00013698,2]
[331163470,1720113041377,-500.0,0.00013698,2]
[331163471,1720113041386,-500.0,0.00013698,2]
[331163472,1720113041395,-500.0,0.00013698,2]
[331163473,1720113041404,-501.7180616,0.00013698,2]
[331163474,1720113041413,-500.0,0.00013698,2]
[331163475,1720113041422,-9069.12,0.00013698,2]
[331163476,1720113041431,-7456.48,0.00013698,2]
[331163477,1720113041440,-500.0,0.00013698,2]
[331163478,1720113041449,-503.35064203,0.00013698,2]
[331163479,1720113041458,-500.0,0.00013698,2]
[331163480,1720113041468,-18103.94,0.00013698,2]
[331163481,1720113041477,-500.0,0.00013698,2]
[331163482,1720113041487,-500.0,0.00013698,2]
[331163483,1720113041496,-500.0,0.00013698,2]
[331163484,1720113041506,-1747.81,0.00013698,2]
[331163485,1720113041515,-1747.81,0.00013698,2]
[331163486,1720113041525,-1747.81,0.00013698,2]
[331163487,1720113041534,-1747.81,0.00013698,2]
[331163488,1720113041543,-1747.81,0.00013698,2]
[331163489,1720113041552,-1747.81,0.00013698,2]
[331163490,1720113041562,-500.0,0.00013698,2]
[331163491,1720113041571,-500.0,0.00013698,2]
[331163492,1720113041580,-500.0,0.00013698,2]
[331163493,1720113041589,-500.0,0.00013698,2]
[331163494,1720113041599,-500.0,0.00013698,2]
[331163495,1720113041609,-1897.71,0.00013698,2]
[331163496,1720113041618,-500.0,0.00013698,2]
[331163497,1720113041627,-500.0,0.00013698,2]
[331163498,1720113041636,-500.0,0.00013698,2]
[331163499,1720113041645,-500.0,0.00013698,2]
[331163500,1720113041654,-500.0,0.00013698,2]
[331163501,1720113041662,-500.0,0.00013698,2]
[331163502,1720113041671,-500.0,0.00013698,2]
[331163503,1720113041681,-500.0,0.00013698,2]
[331163504,1720113041690,-500.0,0.00013698,2]
[331163505,1720113041700,-500.0,0.00013698,2]
[331163506,1720113041709,-3209.68,0.00013698,2]
[331163507,1720113041718,-509.80111708,0.00013698,2]
[331163508,1720113041727,-500.0,0.00013698,2]
[331163509,1720113041736,-509.85877654,0.00013698,2]
[331163510,1720113041745,-1128.16,0.00013698,2]
[331163511,1720113041755,-500.0,0.00013698,2]
[331163512,1720113041764,-871.82,0.00013698,2]
[331163513,1720113041773,-500.0,0.00013698,2]
[331163514,1720113041782,-500.0,0.00013698,2]
[331163515,1720113041791,-500.0,0.00013698,2]
[331163516,1720113041801,-500.0,0.00013698,2]
[331163517,1720113041810,-501.5811919,0.00013698,2]
[331163518,1720113041819,-1264.25,0.00013698,2]
[331163519,1720113041827,-500.0,0.00013698,2]
[331163520,1720113041836,-500.0,0.00013698,2]
[331163521,1720113041846,-500.0,0.00013698,2]
[331163522,1720113041855,-500.0,0.00013698,2]
[331163523,1720113041864,-502.06658605,0.00013698,2]
[331163524,1720113041874,-500.0,0.00013698,2]
[331163525,1720113041883,-500.0,0.00013698,2]
[331163526,1720113041892,-5487.53,0.00013698,2]
[331163527,1720113041902,-500.0,0.00013698,2]
[331163528,1720113041911,-500.0,0.00013698,2]
[331163529,1720113041922,-551.12,0.00013698,2]
[331163530,1720113041933,-1715.3,0.00013698,2]
[331163531,1720113041943,-500.0,0.00013698,2]
[331163532,1720113041952,-500.0,0.00013698,2]
[331163533,1720113041963,-502.08593583,0.00013698,2]
[331163534,1720113041972,-500.0,0.00013698,2]
[331163535,1720113041981,-500.0,0.00013698,2]
[331163536,1720113041991,-1067.6,0.00013698,2]
[331163537,1720113042000,-500.0,0.00013698,2]
[331163538,1720113042009,-500.0,0.00013698,2]
[331163539,1720113042018,-500.0,0.00013698,2]
[331163540,1720113042028,-500.0,0.00013698,2]
[331163541,1720113042037,-500.0,0.00013698,2]
[331163542,1720113042046,-500.0,0.00013698,2]
[331163543,1720113042056,-500.0,0.00013698,2]
[331163544,1720113042065,-500.0,0.00013698,2]
[331163545,1720113042074,-500.0,0.00013698,2]
[331163546,1720113042083,-500.0,0.00013698,2]
[331163547,1720113042092,-500.0,0.00013698,2]
[331163548,1720113042102,-506.50097805,0.00013698,2]
[331163549,1720113042111,-500.0,0.00013698,2]
[331163550,1720113042122,-501.51636752,0.00013698,2]
[331163551,1720113042131,-4997.35,0.00013698,2]
[331163552,1720113042141,-3000.0,0.00013699,2]
[331163553,1720113042153,-334.331596,0.00013699,2]
[331163554,1720113042163,-500.0,0.000137,2]
[331163555,1720113042172,-429.54814423,0.00013735,2]
[331163556,1720113042181,-499.96109356,0.000138,2]
[331163557,1720113042284,-429.54814423,0.00013804,2]
[331163558,1720113042293,-429.54814423,0.00013872,2]
[331163559,1720113042302,-725.55474896,0.00013872,2]
[331163560,1720113042312,-500.03890643,0.000139,2]
[331163561,1720113042320,-1747.81,0.00013961,2]
[331163562,1720113042330,-1747.81,0.00013961,2]
[331163563,1720113042339,-70459.7848904,0.00013962,2]
[331163564,1720113042615,-500.0,0.00013698,2]
[331163565,1720113042625,-338.843958,0.00013698,2]
[331163566,1720113042635,-13416.0379869,0.00013962,2]
[331163567,1720113042644,-1747.81,0.00013971,2]
[331163568,1720113042654,-1747.81,0.00013971,2]
[331163569,1720113042663,-1747.81,0.00013971,2]
[331163570,1720113042674,-500.0,0.00013972,2]
[331163571,1720113042684,-1050.54,0.00013972,2]
[331163572,1720113042693,-500.0,0.00013972,2]
[331163573,1720113042702,-500.0,0.00013972,2]
[331163574,1720113042711,-565.04,0.00013972,2]
[331163575,1720113042720,-500.0,0.00013972,2]
[331163576,1720113042730,-771.74,0.00013972,2]
[331163578,1720113042739,-500.0,0.00013972,2]
[331163579,1720113042748,-500.0,0.00013972,2]
[331163580,1720113042760,-500.0,0.00013972,2]
[331163581,1720113042770,-511.97697322,0.00013972,2]
[331163582,1720113042780,-500.0,0.00013972,2]
[331163583,1720113042789,-634.77,0.00013972,2]
[331163584,1720113042799,-500.0,0.00013972,2]
[331163585,1720113042808,-7742.29,0.00013972,2]
[331163586,1720113042819,-655.42,0.00013972,2]
[331163587,1720113042828,-4145.78,0.00013972,2]
[331163588,1720113042837,-500.0,0.00013972,2]
[331163589,1720113042846,-502.15316568,0.00013972,2]
[331163590,1720113042855,-500.0,0.00013972,2]
[331163591,1720113042864,-379.41810505,0.00013972,2]
[331163593,1720113042873,-575.74793625,0.00013972,2]
[331163595,1720113042882,-500.0,0.00013972,2]
[331163597,1720113042891,-500.0,0.00013972,2]
[331163600,1720113042900,-500.0,0.00013972,2]
[331163603,1720113042909,-500.0,0.00013972,2]
[331163605,1720113042918,-500.0,0.00013972,2]
[331163607,1720113042927,-554.14095671,0.00013972,2]
[331163608,1720113042936,-500.0,0.00013972,2]
[331163610,1720113042945,-500.0,0.00013972,2]
[331163612,1720113042955,-500.0,0.00013972,2]
[331163613,1720113042965,-500.0,0.00013972,2]
[331163614,1720113042975,-648.58292271,0.00013972,2]
[331163615,1720113042984,-500.0,0.00013972,2]
[331163616,1720113042995,-1158.37,0.00013972,2]
[331163617,1720113043004,-500.0,0.00013972,2]
[331163618,1720113043013,-500.0,0.00013972,2]
[331163619,1720113043022,-500.0,0.00013972,2]
[331163621,1720113043031,-415.49218334,0.00013972,2]
[331163622,1720113043040,-500.0,0.00013972,2]
[331163624,1720113043049,-500.0,0.00013972,2]
[331163626,1720113043059,-500.0,0.00013972,2]
[331163628,1720113043068,-1100.5,0.00013972,2]
[331163630,1720113043078,-500.0,0.00013972,2]
[331163632,1720113043087,-500.0,0.00013972,2]
[331163634,1720113043098,-500.0,0.00013972,2]
[331163636,1720113043108,-500.0,0.00013972,2]
[331163638,1720113043118,-614.82,0.00013972,2]
[331163640,1720113043127,-1614.18,0.00013972,2]
[331163642,1720113043142,-521.72,0.00013972,2]
[331163644,1720113043151,-500.0,0.00013972,2]
[331163646,1720113043160,-500.0,0.00013972,2]
[331163648,1720113043169,-500.0,0.00013972,2]
[331163649,1720113043179,-500.0,0.00013972,2]
[331163650,1720113043187,-500.0,0.00013972,2]
[331163651,1720113043196,-500.0,0.00013972,2]
[331163652,1720113043206,-500.0,0.00013972,2]
[331163653,1720113043217,-500.0,0.00013972,2]
[331163654,1720113043227,-371.84764022,0.00013972,2]
[331163655,1720113043236,-395.20564565,0.00013972,2]
[331163656,1720113043245,-552.86188749,0.00013972,2]
[331163657,1720113043254,-500.0,0.00013972,2]
[331163658,1720113043264,-500.0,0.00013972,2]
[331163659,1720113043273,-1001.25,0.00013972,2]
[331163660,1720113043282,-500.0,0.00013972,2]
[331163661,1720113043291,-1381.04,0.00013972,2]
[331163662,1720113043300,-701.65,0.00013972,2]
[331163663,1720113043310,-500.0,0.00013972,2]
[331163664,1720113043319,-503.65864481,0.00013972,2]
[331163665,1720113043328,-500.0,0.00013972,2]
[331163666,1720113043337,-500.0,0.00013972,2]
[331163667,1720113043347,-500.0,0.00013972,2]
[331163668,1720113043355,-500.0,0.00013972,2]
[331163669,1720113043364,-500.0,0.00013972,2]
[331163670,1720113043373,-711.19,0.00013972,2]
[331163671,1720113043383,-787.93,0.00013972,2]
[331163672,1720113043391,-500.0,0.00013972,2]
[331163673,1720113043401,-609.38,0.00013972,2]
[331163674,1720113043410,-500.0,0.00013972,2]
[331163675,1720113043419,-500.0,0.00013972,2]
[331163676,1720113043429,-500.0,0.00013972,2]
[331163677,1720113043438,-500.0,0.00013972,2]
[331163678,1720113043446,-742.77,0.00013972,2]
[331163679,1720113043455,-709.02,0.00013972,2]
[331163680,1720113043465,-500.0,0.00013972,2]
[331163681,1720113043476,-500.0,0.00013972,2]
[331163682,1720113043485,-500.0,0.00013972,2]
[331163683,1720113043494,-500.0,0.00013972,2]
[331163684,1720113043503,-598.56859175,0.00013972,2]
[331163685,1720113043512,-500.0,0.00013972,2]
[331163686,1720113043521,-8847.74,0.00013972,2]
[331163687,1720113043531,-500.0,0.00013972,2]
[331163688,1720113043540,-500.0,0.00013972,2]
[331163689,1720113043548,-500.0,0.00013972,2]
[331163690,1720113043557,-500.0,0.00013972,2]
[331163691,1720113043566,-500.0,0.00013972,2]
[331163692,1720113043575,-500.0,0.00013972,2]
[331163693,1720113043584,-500.0,0.00013972,2]
[331163694,1720113043593,-509.86,0.00013972,2]
[331163695,1720113043602,-500.0,0.00013972,2]
[331163696,1720113043611,-500.0,0.00013972,2]
[331163697,1720113043620,-712.13,0.00013972,2]
[331163698,1720113043629,-500.0,0.00013972,2]
[331163699,1720113043638,-500.0,0.00013972,2]
[331163700,1720113043648,-500.0,0.00013972,2]
[331163701,1720113043657,-500.0,0.00013972,2]
[331163702,1720113043666,-500.0,0.00013972,2]
[331163703,1720113043674,-500.0,0.00013972,2]
[331163704,1720113043683,-500.0,0.00013972,2]
[331163705,1720113043692,-500.0,0.00013972,2]
[331163706,1720113043701,-500.0,0.00013972,2]
[331163707,1720113043711,-795.08,0.00013972,2]
[331163708,1720113043719,-387.5744899,0.00013972,2]
[331163709,1720113044038,-500.0,0.00013698,2]
[331163710,1720113044047,-500.0,0.00013698,2]
[331163711,1720113044056,-500.0,0.00013698,2]
[331163713,1720113044167,-40.63925737,0.00013972,2]
[331163715,1720113044179,-71.78625273,0.00013972,2]
[331163717,1720113044190,-500.0,0.00013972,2]
[331163719,1720113044199,-561.3,0.00013972,2]
[331163720,1720113044208,-500.0,0.00013972,2]
[331163721,1720113044218,-500.0,0.00013972,2]
[331163722,1720113044230,-630.43,0.00013972,2]
[331163723,1720113044239,-500.0,0.00013972,2]
[331163725,1720113044248,-500.0,0.00013972,2]
[331163726,1720113044257,-500.0,0.00013972,2]
[331163728,1720113044266,-762.64,0.00013972,2]
[331163730,1720113044275,-500.0,0.00013972,2]
[331163732,1720113044284,-500.0,0.00013972,2]
[331163734,1720113044293,-415.06377454,0.00013972,2]
[331163736,1720113044302,-500.0,0.00013972,2]
[331163738,1720113044311,-500.0,0.00013972,2]
[331163740,1720113044321,-500.0,0.00013972,2]
[331163742,1720113044330,-500.0,0.00013972,2]
[331163744,1720113044339,-500.0,0.00013972,2]
[331163746,1720113044348,-500.0,0.00013972,2]
[331163748,1720113044357,-500.0,0.00013972,2]
[331163750,1720113044367,-500.0,0.00013972,2]
[331163752,1720113044375,-500.0,0.00013972,2]
[331163754,1720113044384,-500.0,0.00013972,2]
[331163756,1720113044394,-500.0,0.00013972,2]
[331163758,1720113044403,-2158.6,0.00013972,2]
[331163760,1720113044412,-500.0,0.00013972,2]
[331163762,1720113044421,-500.0,0.00013972,2]
[331163764,1720113044431,-618.06,0.00013972,2]
[331163766,1720113044440,-500.0,0.00013972,2]
[331163769,1720113044449,-500.0,0.00013972,2]
[331163770,1720113044458,-2765.92,0.00013972,2]
[331163773,1720113044469,-500.0,0.00013972,2]
[331163774,1720113044480,-1080.8,0.00013972,2]
[331163777,1720113044489,-500.0,0.00013972,2]
[331163779,1720113044499,-931.3,0.00013972,2]
[331163781,1720113044508,-500.0,0.00013972,2]
[331163783,1720113044518,-500.0,0.00013972,2]
[331163785,1720113044527,-1482.17,0.00013972,2]
[331163787,1720113044536,-504.41982607,0.00013972,2]
[331163789,1720113044545,-500.0,0.00013972,2]
[331163791,1720113044554,-500.0,0.00013972,2]
[331163793,1720113044563,-500.0,0.00013972,2]
[331163795,1720113044572,-500.0,0.00013972,2]
[331163797,1720113044581,-500.0,0.00013972,2]
[331163799,1720113044590,-737.64,0.00013972,2]
[331163801,1720113044600,-500.0,0.00013972,2]
[331163803,1720113044609,-1119.44,0.00013972,2]
[331163805,1720113044618,-500.0,0.00013972,2]
[331163807,1720113044627,-500.0,0.00013972,2]
[331163809,1720113044636,-500.0,0.00013972,2]
[331163811,1720113044645,-608.08136095,0.00013972,2]
[331163813,1720113044654,-526.7275412,0.00013972,2]
[331163815,1720113044663,-4961.15,0.00013972,2]
[331163817,1720113044672,-500.0,0.00013972,2]
[331163819,1720113044682,-500.0,0.00013972,2]
[331163821,1720113044692,-500.0,0.00013972,2]
[331163823,1720113044701,-500.0,0.00013972,2]
[331163825,1720113044711,-500.0,0.00013972,2]
[331163827,1720113044722,-500.0,0.00013972,2]
[331163829,1720113044733,-500.0,0.00013972,2]
[331163831,1720113044742,-768.08,0.00013972,2]
[331163833,1720113044752,-985.04,0.00013972,2]
[331163835,1720113044761,-500.0,0.00013972,2]
[331163837,1720113044770,-500.0,0.00013972,2]
[331163839,1720113044779,-2842.6,0.00013972,2]
[331163841,1720113044788,-500.0,0.00013972,2]
[331163843,1720113044798,-500.0,0.00013972,2]
[331163845,1720113044807,-500.0,0.00013972,2]
[331163847,1720113044817,-500.0,0.00013972,2]
[331163849,1720113044826,-500.0,0.00013972,2]
[331163851,1720113044835,-500.0,0.00013972,2]
[331163853,1720113044844,-500.0,0.00013972,2]
[331163855,1720113044855,-500.0,0.00013972,2]
[331163857,1720113044864,-500.0,0.00013972,2]
[331163859,1720113044873,-9069.12,0.00013972,2]
[331163861,1720113044883,-7456.48,0.00013972,2]
[331163863,1720113044893,-500.0,0.00013972,2]
[331163865,1720113044903,-18103.94,0.00013972,2]
[331163867,1720113044912,-500.0,0.00013972,2]
[331163869,1720113044921,-500.0,0.00013972,2]
[331163871,1720113044930,-500.0,0.00013972,2]
[331163873,1720113044940,-500.0,0.00013972,2]
[331163875,1720113044950,-500.0,0.00013972,2]
[331163877,1720113044959,-500.0,0.00013972,2]
[331163879,1720113044968,-1897.71,0.00013972,2]
[331163881,1720113044978,-500.0,0.00013972,2]
[331163883,1720113044988,-500.0,0.00013972,2]
[331163885,1720113044997,-544.12841864,0.00013972,2]
[331163887,1720113045006,-500.0,0.00013972,2]
[331163889,1720113045015,-500.0,0.00013972,2]
[331163891,1720113045024,-500.0,0.00013972,2]
[331163893,1720113045033,-500.0,0.00013972,2]
[331163895,1720113045043,-3209.68,0.00013972,2]
[331163897,1720113045053,-500.0,0.00013972,2]
[331163899,1720113045062,-1128.16,0.00013972,2]
[331163901,1720113045071,-500.0,0.00013972,2]
[331163903,1720113045080,-500.0,0.00013972,2]
[331163905,1720113045089,-500.0,0.00013972,2]
[331163907,1720113045098,-500.0,0.00013972,2]
[331163909,1720113045108,-696.32846743,0.00013972,2]
[331164042,1720113046529,-1143.00455779,0.0001212,2]
[331164043,1720113046538,-535.62143049,0.00013698,2]
[331164044,1720113046547,-567.92153257,0.00013972,2]
[331164045,1720113046556,-500.0,0.00013972,2]
[331164046,1720113046565,-500.0,0.00013972,2]
[331164047,1720113046574,-107.66867847,0.00013972,2]
[331164049,1720113046585,-392.33132153,0.00013972,2]
[331164050,1720113046595,-500.0,0.00013972,2]
[331164052,1720113046604,-551.69317341,0.00013972,2]
[331164054,1720113046613,-5487.53,0.00013972,2]